{"text_format":"1","workbook":"xlsx","n_sheets":4,"sheets":["県税提出用①","県税提出用②","提出用控","記載要領"],"not_rendered":{"charts":0,"images":2,"macros":0,"external_links":0,"defined_names":4,"comments":0,"pivot_tables":0},"unopened":[],"bounds":{"document_bytes":16777216,"sheet_cells":100000,"rows_first":2000,"rows_last":500,"rows_between":2000,"halvings":0,"cell_chars":16384,"cell_head_chars":4096},"cells_cut":0,"cells_raw":0,"read":"whole","date_system":"1900"}

{"sheet":"県税提出用①","index":0,"n_rows":17,"n_cols":65,"rows_kept":17,"cut":false,"hidden":false,"merged":[[47,1,48,12],[47,13,48,24],[47,25,47,72],[11,14,13,15],[11,18,13,19],[11,11,13,13],[11,20,13,22],[10,59,12,72],[13,59,15,72],[45,1,46,12],[45,13,46,24],[43,1,44,12],[43,13,44,24],[43,25,43,72],[45,25,45,72],[41,1,42,12],[41,13,42,24],[39,1,40,12],[39,13,40,24],[39,25,39,72],[41,25,41,72],[37,1,38,12],[37,13,38,24],[21,1,22,12],[21,13,22,24],[21,25,21,72],[37,25,37,72],[23,25,23,72],[25,1,26,12],[25,25,25,72],[23,1,24,12],[23,13,24,24],[27,1,28,12],[27,25,27,72],[29,1,30,12],[29,25,29,72],[31,1,32,12],[6,25,7,36],[6,37,7,72],[8,25,8,30],[8,31,8,36],[8,37,8,42],[8,43,8,48],[8,49,8,54],[8,55,8,60],[8,61,8,66],[2,64,3,72],[4,59,4,63],[5,52,5,54],[2,25,3,54],[2,55,3,63],[4,64,4,68],[5,28,5,30],[5,40,5,42],[5,43,5,45],[5,46,5,48],[5,49,5,51],[5,31,5,33],[5,34,5,36],[5,37,5,39],[19,25,19,72],[35,13,36,24],[33,1,34,12],[33,25,33,72],[35,1,36,12],[35,25,35,72],[33,13,34,24],[31,25,31,72],[25,13,26,24],[27,13,28,24],[29,13,30,24],[31,13,32,24],[3,1,3,22],[4,1,5,22],[6,1,7,22],[8,1,8,22],[18,1,20,12],[16,1,17,12],[16,13,17,72],[8,67,8,72],[18,13,20,24],[11,16,13,17],[10,51,11,58],[13,51,14,58],[4,69,4,72],[4,55,4,58],[4,25,4,54],[2,23,9,24]]}
[]
[]
[null,null,null,null,null,null,null,null,null,null,null,null,null,null,null,null,null,null,null,null,null,null,null,"※処理事項",null,"事業者コード",null,null,null,null,null,null,null,null,null,null,null,null,null,null,null,null,null,null,null,null,null,null,null,null,null,null,null,null,null,"処理\n区分",null,null,null,null,null,null,null,null,"申告\n区分"]
[null,"　申告者の氏名又は名称"]
[]
[]
[null,"　個人番号又は法人番号\n　　　　　　↓個人番号の記載に当たっては、左端を空欄とし、ここから記載してください。",null,null,null,null,null,null,null,null,null,null,null,null,null,null,null,null,null,null,null,null,null,null,null,"予備",null,null,null,null,null,null,null,null,null,null,null,"申告年月日"]
[]
[null,null,null,null,null,null,null,null,null,null,null,null,null,null,null,null,null,null,null,null,null,null,null,null,null,1,null,null,null,null,null,4]
[]
[null,null,null,null,null,null,null,null,null,null,null,null,null,null,null,null,null,null,null,null,null,null,null,null,null,null,null,null,null,null,null,null,null,null,null,null,null,null,null,null,null,null,null,null,null,null,null,null,null,null,null,null,null,null,null,null,null,null,null,"枚のうち"]
[null,null,null,null,null,null,null,null,null,null,null,"令和",null,null,null,null,"年",null,null,null,"月分"]
[]
[null,null,null,null,null,null,null,null,null,null,null,null,null,null,null,null,null,null,null,null,null,null,null,null,null,null,null,null,null,null,null,null,null,null,null,null,null,null,null,null,null,null,null,null,null,null,null,null,null,null,null,null,null,null,null,null,null,null,null,"枚目"]
[]
[]
[null,"卸売販売業者等の氏名または名称",null,null,null,null,null,null,null,null,null,null,null,"数量"]

{"sheet":"県税提出用②","index":1,"n_rows":48,"n_cols":65,"rows_kept":48,"cut":false,"hidden":false,"merged":[[18,25,19,72],[18,24,19,24],[7,14,10,18],[8,23,9,24],[10,51,11,58],[10,59,12,72],[13,51,14,58],[13,59,15,72],[10,20,13,50],[16,51,16,58],[11,16,13,17],[11,14,13,15],[11,18,13,19],[2,55,3,63],[2,64,3,72],[4,64,4,68],[4,69,4,72],[4,55,4,58],[4,59,4,63],[5,34,5,36],[5,37,5,39],[5,40,5,42],[2,25,3,54],[4,25,4,54],[21,25,21,72],[5,52,5,54],[8,25,8,30],[8,31,8,36],[8,37,8,42],[8,43,8,48],[8,49,8,54],[6,19,6,72],[8,55,8,60],[8,61,8,66],[8,67,8,72],[5,43,5,45],[5,46,5,48],[5,49,5,51],[5,28,5,30],[5,31,5,33],[35,1,36,2],[37,1,38,2],[33,14,33,23],[33,25,33,72],[31,1,32,2],[33,1,34,2],[31,14,31,23],[31,25,31,72],[43,1,44,2],[45,1,46,2],[39,14,39,23],[41,14,41,23],[39,1,40,2],[41,1,42,2],[18,3,20,13],[47,14,47,23],[43,14,43,23],[45,14,45,23],[35,14,35,23],[37,14,37,23],[27,14,27,23],[21,14,21,23],[18,14,19,23],[27,25,27,72],[29,14,29,23],[29,25,29,72],[23,14,23,23],[23,25,23,72],[25,14,25,23],[25,25,25,72],[16,1,17,2],[12,1,15,2],[47,25,47,72],[18,1,20,2],[21,1,22,2],[23,1,24,2],[25,1,26,2],[27,1,28,2],[29,1,30,2],[47,1,48,2],[43,25,43,72],[45,25,45,72],[39,25,39,72],[41,25,41,72],[35,25,35,72],[37,25,37,72]]}
[]
[]
[null,null,null,null,null,null,null,null,null,null,null,null,null,null,null,null,null,null,null,null,null,null,null,null,null,"事業者コード",null,null,null,null,null,null,null,null,null,null,null,null,null,null,null,null,null,null,null,null,null,null,null,null,null,null,null,null,null,"処理\n区分",null,null,null,null,null,null,null,null,"申告\n区分"]
[]
[null,null,null,null,null,null,null,null,null,null,null,null,null,null,null,null,null,null,null,null,null,null,null,null,null,{"$f":"IF(県税提出用①!Z5=\"\",\"\",県税提出用①!Z5)","v":""}]
[]
[]
[]
[null,null,null,null,null,null,null,null,null,null,null,null,null,null,null,null,null,null,null,null,null,null,null,"ウ",null,1,null,null,null,null,null,4]
[]
[null,null,null,null,null,null,null,null,null,null,null,null,null,null,null,null,null,null,null,null,null,null,null,null,null,null,null,null,null,null,null,null,null,null,null,null,null,null,null,null,null,null,null,null,null,null,null,null,null,null,null,{"$f":"IF(県税提出用①!AZ11=\"\",\"\",県税提出用①!AZ11)","v":""}]
[null,null,null,null,null,null,null,null,null,null,null,null,null,null,{"$f":"IF(県税提出用①!O12=\"\",\"\",県税提出用①!O12)","v":""},null,null,null,{"$f":"IF(県税提出用①!S12=\"\",\"\",県税提出用①!S12)","v":""}]
[null,"エ"]
[null,null,null,null,null,null,null,null,null,null,null,null,null,null,null,null,null,null,null,null,null,null,null,null,null,null,null,null,null,null,null,null,null,null,null,null,null,null,null,null,null,null,null,null,null,null,null,null,null,null,null,{"$f":"IF(県税提出用①!AZ14=\"\",\"\",県税提出用①!AZ14)","v":""}]
[]
[]
[]
[]
[null,"01",null,null,null,null,null,null,null,null,null,null,null,null,null,null,null,null,null,null,null,null,null,null,null,{"$f":"IF(県税提出用①!Z20=\"\",\"\",県税提出用①!Z20)","v":""}]
[]
[]
[null,"02",null,null,null,null,null,null,null,null,null,null,null,null,null,null,null,null,null,null,null,null,null,null,null,{"$f":"IF(県税提出用①!Z22=\"\",\"\",県税提出用①!Z22)","v":""}]
[]
[null,"03",null,null,null,null,null,null,null,null,null,null,null,null,null,null,null,null,null,null,null,null,null,null,null,{"$f":"IF(県税提出用①!Z24=\"\",\"\",県税提出用①!Z24)","v":""}]
[]
[null,"04",null,null,null,null,null,null,null,null,null,null,null,null,null,null,null,null,null,null,null,null,null,null,null,{"$f":"IF(県税提出用①!Z26=\"\",\"\",県税提出用①!Z26)","v":""}]
[]
[null,"05",null,null,null,null,null,null,null,null,null,null,null,null,null,null,null,null,null,null,null,null,null,null,null,{"$f":"IF(県税提出用①!Z28=\"\",\"\",県税提出用①!Z28)","v":""}]
[]
[null,"06",null,null,null,null,null,null,null,null,null,null,null,null,null,null,null,null,null,null,null,null,null,null,null,{"$f":"IF(県税提出用①!Z30=\"\",\"\",県税提出用①!Z30)","v":""}]
[]
[null,"07",null,null,null,null,null,null,null,null,null,null,null,null,null,null,null,null,null,null,null,null,null,null,null,{"$f":"IF(県税提出用①!Z32=\"\",\"\",県税提出用①!Z32)","v":""}]
[]
[null,"08",null,null,null,null,null,null,null,null,null,null,null,null,null,null,null,null,null,null,null,null,null,null,null,{"$f":"IF(県税提出用①!Z34=\"\",\"\",県税提出用①!Z34)","v":""}]
[]
[null,"09",null,null,null,null,null,null,null,null,null,null,null,null,null,null,null,null,null,null,null,null,null,null,null,{"$f":"IF(県税提出用①!Z36=\"\",\"\",県税提出用①!Z36)","v":""}]
[]
[null,"10",null,null,null,null,null,null,null,null,null,null,null,null,null,null,null,null,null,null,null,null,null,null,null,{"$f":"IF(県税提出用①!Z38=\"\",\"\",県税提出用①!Z38)","v":""}]
[]
[null,"11",null,null,null,null,null,null,null,null,null,null,null,null,null,null,null,null,null,null,null,null,null,null,null,{"$f":"IF(県税提出用①!Z40=\"\",\"\",県税提出用①!Z40)","v":""}]
[]
[null,"12",null,null,null,null,null,null,null,null,null,null,null,null,null,null,null,null,null,null,null,null,null,null,null,{"$f":"IF(県税提出用①!Z42=\"\",\"\",県税提出用①!Z42)","v":""}]
[]
[null,"13",null,null,null,null,null,null,null,null,null,null,null,null,null,null,null,null,null,null,null,null,null,null,null,{"$f":"IF(県税提出用①!Z44=\"\",\"\",県税提出用①!Z44)","v":""}]
[]
[null,"14",null,null,null,null,null,null,null,null,null,null,null,null,null,null,null,null,null,null,null,null,null,null,null,{"$f":"IF(県税提出用①!Z46=\"\",\"\",県税提出用①!Z46)","v":""}]
[]
[null,"15",null,null,null,null,null,null,null,null,null,null,null,null,null,null,null,null,null,null,null,null,null,null,null,{"$f":"IF(県税提出用①!Z48=\"\",\"\",県税提出用①!Z48)","v":""}]

{"sheet":"提出用控","index":2,"n_rows":48,"n_cols":65,"rows_kept":48,"cut":false,"hidden":false,"merged":[[2,25,3,54],[5,28,5,30],[5,31,5,33],[13,51,14,58],[8,25,8,30],[8,31,8,36],[8,37,8,42],[8,43,8,48],[8,49,8,54],[5,49,5,51],[5,52,5,54],[4,25,4,54],[5,34,5,36],[5,37,5,39],[5,40,5,42],[23,25,23,72],[2,64,3,72],[8,55,8,60],[8,61,8,66],[8,67,8,72],[10,59,12,72],[4,64,4,68],[4,69,4,72],[2,55,3,63],[5,43,5,45],[5,46,5,48],[4,55,4,58],[4,59,4,63],[6,25,7,36],[6,37,7,72],[10,51,11,58],[19,25,19,72],[21,1,22,12],[21,25,21,72],[16,1,17,12],[11,16,13,17],[11,11,13,13],[13,59,15,72],[11,14,13,15],[11,18,13,19],[11,20,13,22],[27,25,27,72],[29,1,30,12],[29,25,29,72],[29,13,30,24],[25,1,26,12],[25,25,25,72],[37,25,37,72],[35,13,36,24],[37,13,38,24],[31,1,32,12],[31,25,31,72],[33,1,34,12],[33,25,33,72],[31,13,32,24],[33,13,34,24],[47,25,47,72],[16,13,17,72],[18,13,20,24],[21,13,22,24],[23,13,24,24],[25,13,26,24],[27,13,28,24],[43,25,43,72],[45,25,45,72],[43,13,44,24],[45,13,46,24],[39,25,39,72],[41,25,41,72],[39,13,40,24],[41,13,42,24],[35,25,35,72],[3,1,3,22],[4,1,5,22],[6,1,7,22],[8,1,8,22],[47,13,48,24],[47,1,48,12],[43,1,44,12],[45,1,46,12],[39,1,40,12],[41,1,42,12],[35,1,36,12],[37,1,38,12],[27,1,28,12],[18,1,20,12],[23,1,24,12],[2,23,9,24]]}
[]
[]
[null,null,null,null,null,null,null,null,null,null,null,null,null,null,null,null,null,null,null,null,null,null,null,"※処理事項",null,"事業者コード",null,null,null,null,null,null,null,null,null,null,null,null,null,null,null,null,null,null,null,null,null,null,null,null,null,null,null,null,null,"処理\n区分",null,null,null,null,null,null,null,null,"申告\n区分"]
[null,"　申告者の氏名又は名称"]
[null,{"$f":"IF(県税提出用①!B5=\"\",\"\",県税提出用①!B5)","v":""},null,null,null,null,null,null,null,null,null,null,null,null,null,null,null,null,null,null,null,null,null,null,null,{"$f":"IF(県税提出用①!Z5=\"\",\"\",県税提出用①!Z5)","v":""}]
[]
[null,"　個人番号又は法人番号\n　　　　　　↓個人番号の記載に当たっては、左端を空欄とし、ここから記載してください。",null,null,null,null,null,null,null,null,null,null,null,null,null,null,null,null,null,null,null,null,null,null,null,"予備",null,null,null,null,null,null,null,null,null,null,null,"申告年月日"]
[]
[null,{"$f":"IF(県税提出用①!B9=\"\",\"\",県税提出用①!B9)","v":""},null,null,null,null,null,null,null,null,null,null,null,null,null,null,null,null,null,null,null,null,null,null,null,1,null,null,null,null,null,4]
[]
[null,null,null,null,null,null,null,null,null,null,null,null,null,null,null,null,null,null,null,null,null,null,null,null,null,null,null,null,null,null,null,null,null,null,null,null,null,null,null,null,null,null,null,null,null,null,null,null,null,null,null,{"$f":"IF(県税提出用①!AZ11=\"\",\"\",県税提出用①!AZ11)","v":""},null,null,null,null,null,null,null,"枚のうち"]
[null,null,null,null,null,null,null,null,null,null,null,"令和",null,null,{"$f":"IF(県税提出用①!O12=\"\",\"\",県税提出用①!O12)","v":""},null,"年",null,{"$f":"IF(県税提出用①!S12=\"\",\"\",県税提出用①!S12)","v":""},null,"月分"]
[]
[null,null,null,null,null,null,null,null,null,null,null,null,null,null,null,null,null,null,null,null,null,null,null,null,null,null,null,null,null,null,null,null,null,null,null,null,null,null,null,null,null,null,null,null,null,null,null,null,null,null,null,{"$f":"IF(県税提出用①!AZ14=\"\",\"\",県税提出用①!AZ14)","v":""},null,null,null,null,null,null,null,"枚目"]
[]
[]
[null,"卸売販売業者等の氏名または名称",null,null,null,null,null,null,null,null,null,null,null,"数量"]
[]
[null,{"$f":"IF(県税提出用①!B19=\"\",\"\",県税提出用①!B19)","v":""}]
[null,null,null,null,null,null,null,null,null,null,null,null,null,null,null,null,null,null,null,null,null,null,null,null,null,{"$f":"IF(県税提出用①!Z20=\"\",\"\",県税提出用①!Z20)","v":""}]
[]
[null,{"$f":"IF(県税提出用①!B22=\"\",\"\",県税提出用①!B22)","v":""},null,null,null,null,null,null,null,null,null,null,null,null,null,null,null,null,null,null,null,null,null,null,null,{"$f":"IF(県税提出用①!Z22=\"\",\"\",県税提出用①!Z22)","v":""}]
[]
[null,{"$f":"IF(県税提出用①!B24=\"\",\"\",県税提出用①!B24)","v":""},null,null,null,null,null,null,null,null,null,null,null,null,null,null,null,null,null,null,null,null,null,null,null,{"$f":"IF(県税提出用①!Z24=\"\",\"\",県税提出用①!Z24)","v":""}]
[]
[null,{"$f":"IF(県税提出用①!B26=\"\",\"\",県税提出用①!B26)","v":""},null,null,null,null,null,null,null,null,null,null,null,null,null,null,null,null,null,null,null,null,null,null,null,{"$f":"IF(県税提出用①!Z26=\"\",\"\",県税提出用①!Z26)","v":""}]
[]
[null,{"$f":"IF(県税提出用①!B28=\"\",\"\",県税提出用①!B28)","v":""},null,null,null,null,null,null,null,null,null,null,null,null,null,null,null,null,null,null,null,null,null,null,null,{"$f":"IF(県税提出用①!Z28=\"\",\"\",県税提出用①!Z28)","v":""}]
[]
[null,{"$f":"IF(県税提出用①!B30=\"\",\"\",県税提出用①!B30)","v":""},null,null,null,null,null,null,null,null,null,null,null,null,null,null,null,null,null,null,null,null,null,null,null,{"$f":"IF(県税提出用①!Z30=\"\",\"\",県税提出用①!Z30)","v":""}]
[]
[null,{"$f":"IF(県税提出用①!B32=\"\",\"\",県税提出用①!B32)","v":""},null,null,null,null,null,null,null,null,null,null,null,null,null,null,null,null,null,null,null,null,null,null,null,{"$f":"IF(県税提出用①!Z32=\"\",\"\",県税提出用①!Z32)","v":""}]
[]
[null,{"$f":"IF(県税提出用①!B34=\"\",\"\",県税提出用①!B34)","v":""},null,null,null,null,null,null,null,null,null,null,null,null,null,null,null,null,null,null,null,null,null,null,null,{"$f":"IF(県税提出用①!Z34=\"\",\"\",県税提出用①!Z34)","v":""}]
[]
[null,{"$f":"IF(県税提出用①!B36=\"\",\"\",県税提出用①!B36)","v":""},null,null,null,null,null,null,null,null,null,null,null,null,null,null,null,null,null,null,null,null,null,null,null,{"$f":"IF(県税提出用①!Z36=\"\",\"\",県税提出用①!Z36)","v":""}]
[]
[null,{"$f":"IF(県税提出用①!B38=\"\",\"\",県税提出用①!B38)","v":""},null,null,null,null,null,null,null,null,null,null,null,null,null,null,null,null,null,null,null,null,null,null,null,{"$f":"IF(県税提出用①!Z38=\"\",\"\",県税提出用①!Z38)","v":""}]
[]
[null,{"$f":"IF(県税提出用①!B40=\"\",\"\",県税提出用①!B40)","v":""},null,null,null,null,null,null,null,null,null,null,null,null,null,null,null,null,null,null,null,null,null,null,null,{"$f":"IF(県税提出用①!Z40=\"\",\"\",県税提出用①!Z40)","v":""}]
[]
[null,{"$f":"IF(県税提出用①!B42=\"\",\"\",県税提出用①!B42)","v":""},null,null,null,null,null,null,null,null,null,null,null,null,null,null,null,null,null,null,null,null,null,null,null,{"$f":"IF(県税提出用①!Z42=\"\",\"\",県税提出用①!Z42)","v":""}]
[]
[null,{"$f":"IF(県税提出用①!B44=\"\",\"\",県税提出用①!B44)","v":""},null,null,null,null,null,null,null,null,null,null,null,null,null,null,null,null,null,null,null,null,null,null,null,{"$f":"IF(県税提出用①!Z44=\"\",\"\",県税提出用①!Z44)","v":""}]
[]
[null,{"$f":"IF(県税提出用①!B46=\"\",\"\",県税提出用①!B46)","v":""},null,null,null,null,null,null,null,null,null,null,null,null,null,null,null,null,null,null,null,null,null,null,null,{"$f":"IF(県税提出用①!Z46=\"\",\"\",県税提出用①!Z46)","v":""}]
[]
[null,{"$f":"IF(県税提出用①!B48=\"\",\"\",県税提出用①!B48)","v":""},null,null,null,null,null,null,null,null,null,null,null,null,null,null,null,null,null,null,null,null,null,null,null,{"$f":"IF(県税提出用①!Z48=\"\",\"\",県税提出用①!Z48)","v":""}]

{"sheet":"記載要領","index":3,"n_rows":13,"n_cols":3,"rows_kept":13,"cut":false,"hidden":false,"merged":[]}
[null,"第16号の２様式別表１記載要領"]
[null,null,"１　この明細書は、第16号の２様式の報告書の「卸売販売業者等からの買受け等"]
[null,null,"　」の欄の記載に係る製造たばこについて卸売販売業者等ごとの内訳を記載し、"]
[null,null,"　同様式の報告書に添付すること。"]
[null,null,"２　※印の欄は、記載しないこと。"]
[null,null,"３　「個人番号又は法人番号」欄には、申告者が個人の場合は個人番号（行政手"]
[null,null,"　続における特定の個人を識別するための番号の利用等に関する法律第２条第５"]
[null,null,"　項に規定する個人番号をいう。）を記載し、法人の場合には、法人番号（同条"]
[null,null,"　第15項に規定する法人番号をいう。）を記載すること。"]
[null,null,"４　「数量」とは、紙巻たばこの本数と紙巻たばこ以外の製造たばこの重量を紙"]
[null,null,"　巻たばこの本数に換算したもの（この数値に小数点以下１位未満の端数がある"]
[null,null,"　ときは、その端数を切り捨て、小数点以下１位まで算出したもの）の合計数量"]
[null,null,"　をいうものであること。"]